[Event "*** SCC Grand Prix: Titled Tuesday Blitz"]
[Site "Chess.com"]
[Date "2020.06.23"]
[Round "1"]
[White "floplover"]
[Black "ruslansezdbekov"]
[Result "0-1"]
[WhiteElo "2223"]
[BlackElo "2567"]
[TimeControl "180+1"]
[EndTime "10:04:17 PDT"]
[Termination "ruslansezdbekov won by resignation"]

1. d4 {[%clk 0:03:00.9]} 1... Nf6 {[%clk 0:02:59.3]} 2. c4 {[%clk 0:02:59.8]}
2... e6 {[%clk 0:02:59.1]} 3. Nc3 {[%clk 0:02:59.7]} 3... d5 {[%clk 0:02:59.3]}
4. Nf3 {[%clk 0:02:59]} 4... Be7 {[%clk 0:02:58.4]} 5. Bf4 {[%clk 0:02:58.7]}
5... O-O {[%clk 0:02:56.9]} 6. e3 {[%clk 0:02:57.9]} 6... a6 {[%clk 0:02:56.8]}
7. Rc1 {[%clk 0:02:52.4]} 7... Nbd7 {[%clk 0:02:55]} 8. c5 {[%clk 0:02:49.5]}
8... Ne4 {[%clk 0:02:49.7]} 9. Nxe4 {[%clk 0:02:36.5]} 9... dxe4 {[%clk
0:02:48.5]} 10. Nd2 {[%clk 0:02:37.4]} 10... Nf6 {[%clk 0:02:48.4]} 11. Qc2
{[%clk 0:02:30.1]} 11... Qd5 {[%clk 0:02:46.7]} 12. Bc4 {[%clk 0:02:26.8]} 12...
Qf5 {[%clk 0:02:45.5]} 13. Bxc7 {[%clk 0:02:24.5]} 13... Bd7 {[%clk 0:02:45.1]}
14. O-O {[%clk 0:02:21.6]} 14... Rac8 {[%clk 0:02:41.9]} 15. Bg3 {[%clk
0:02:21.3]} 15... Bc6 {[%clk 0:02:36.4]} 16. f3 {[%clk 0:02:10.3]} 16... Qg6
{[%clk 0:02:31.9]} 17. fxe4 {[%clk 0:02:05.3]} 17... Nxe4 {[%clk 0:02:30.9]} 18.
Bd3 {[%clk 0:01:59.9]} 18... f5 {[%clk 0:02:25.3]} 19. Bxe4 {[%clk 0:01:53.1]}
19... fxe4 {[%clk 0:02:25]} 20. Nc4 {[%clk 0:01:47.3]} 20... Bg5 {[%clk
0:02:24.7]} 21. Rxf8+ {[%clk 0:01:27.7]} 21... Rxf8 {[%clk 0:02:23.1]} 22. Re1
{[%clk 0:01:28.6]} 22... Qh6 {[%clk 0:02:19.3]} 23. Qd2 {[%clk 0:01:26.1]} 23...
Bb5 {[%clk 0:02:16.8]} 24. Nd6 {[%clk 0:01:22.7]} 24... Bxe3+ {[%clk 0:02:14.5]}
25. Qf2 {[%clk 0:01:06.7]} 25... Bxf2+ {[%clk 0:02:12.9]} 26. Bxf2 {[%clk
0:01:07.6]} 26... Rxf2 {[%clk 0:02:12.4]} 27. Nxb5 {[%clk 0:00:59.8]} 27... Qd2
{[%clk 0:02:05.9]} 0-1

[Event "*** SCC Grand Prix: Titled Tuesday Blitz"]
[Site "Chess.com"]
[Date "2020.06.23"]
[Round "1"]
[White "KingCrusher275"]
[Black "GadimbayliA"]
[Result "0-1"]
[WhiteElo "2443"]
[BlackElo "2876"]
[TimeControl "180+1"]
[EndTime "10:04:24 PDT"]
[Termination "GadimbayliA won by resignation"]

1. e4 {[%clk 0:02:56.9]} 1... e5 {[%clk 0:03:00.2]} 2. Nf3 {[%clk 0:02:53.8]}
2... d5 {[%clk 0:03:00.6]} 3. exd5 {[%clk 0:02:50.6]} 3... e4 {[%clk 0:03:01.5]}
4. Nd4 {[%clk 0:02:40.4]} 4... Qxd5 {[%clk 0:03:00.9]} 5. Nb3 {[%clk 0:02:40.8]}
5... Nf6 {[%clk 0:03:01.1]} 6. Nc3 {[%clk 0:02:40.1]} 6... Qe5 {[%clk
0:03:01.4]} 7. Bc4 {[%clk 0:02:35.6]} 7... Bd6 {[%clk 0:02:59.3]} 8. Qe2 {[%clk
0:02:28.6]} 8... O-O {[%clk 0:02:52.5]} 9. Nb5 {[%clk 0:02:24.1]} 9... Nc6
{[%clk 0:02:41.2]} 10. Nxd6 {[%clk 0:02:16.7]} 10... Qxd6 {[%clk 0:02:41.1]} 11.
O-O {[%clk 0:02:14.1]} 11... Ng4 {[%clk 0:02:40.4]} 12. g3 {[%clk 0:02:04.2]}
12... Bf5 {[%clk 0:02:39.8]} 13. d3 {[%clk 0:01:55.9]} 13... Rfe8 {[%clk
0:02:39.7]} 14. Bf4 {[%clk 0:01:52.7]} 14... Qg6 {[%clk 0:02:39.3]} 15. d4
{[%clk 0:01:42.5]} 15... a5 {[%clk 0:02:08.5]} 16. a4 {[%clk 0:01:28.9]} 16...
Nb4 {[%clk 0:02:08.2]} 17. Rac1 {[%clk 0:00:57.2]} 17... c6 {[%clk 0:02:06.5]}
18. Rfd1 {[%clk 0:00:52.3]} 18... Nxh2 {[%clk 0:02:00.2]} 19. Kxh2 {[%clk
0:00:49]} 19... Bg4 {[%clk 0:02:00.5]} 20. f3 {[%clk 0:00:32.6]} 20... Bxf3
{[%clk 0:02:00.6]} 21. Qf2 {[%clk 0:00:31.7]} 21... Qh5+ {[%clk 0:02:00.5]} 0-1

[Event "*** SCC Grand Prix: Titled Tuesday Blitz"]
[Site "Chess.com"]
[Date "2020.06.23"]
[Round "1"]
[White "willc-h99"]
[Black "Indianlad"]
[Result "0-1"]
[WhiteElo "2459"]
[BlackElo "2969"]
[TimeControl "180+1"]
[EndTime "10:04:31 PDT"]
[Termination "Indianlad won by resignation"]

1. c4 {[%clk 0:03:00.9]} 1... e5 {[%clk 0:02:59.8]} 2. g3 {[%clk 0:03:00.9]}
2... Nf6 {[%clk 0:02:57.2]} 3. Bg2 {[%clk 0:03:01.2]} 3... Nc6 {[%clk
0:02:57.9]} 4. Nc3 {[%clk 0:03:00.7]} 4... Bc5 {[%clk 0:02:58.2]} 5. e3 {[%clk
0:03:00.5]} 5... a6 {[%clk 0:02:58.7]} 6. Nge2 {[%clk 0:03:00]} 6... Ba7 {[%clk
0:02:59.2]} 7. O-O {[%clk 0:03:00]} 7... d6 {[%clk 0:02:59.4]} 8. d4 {[%clk
0:02:59.9]} 8... h5 {[%clk 0:02:59.8]} 9. h3 {[%clk 0:02:54.9]} 9... Bf5 {[%clk
0:02:59.9]} 10. Bxc6+ {[%clk 0:02:40.8]} 10... bxc6 {[%clk 0:02:59.7]} 11. dxe5
{[%clk 0:02:41.7]} 11... Nd7 {[%clk 0:02:54.8]} 12. exd6 {[%clk 0:02:34.6]}
12... Bxh3 {[%clk 0:02:54.9]} 13. Re1 {[%clk 0:02:33.5]} 13... Ne5 {[%clk
0:02:55.2]} 14. Nf4 {[%clk 0:02:33.8]} 14... Bg4 {[%clk 0:02:55.1]} 15. Qa4
{[%clk 0:02:30.7]} 15... O-O {[%clk 0:02:48.2]} 16. dxc7 {[%clk 0:02:26.1]}
16... Qxc7 {[%clk 0:02:45.1]} 17. Rf1 {[%clk 0:02:12.7]} 17... h4 {[%clk
0:02:43.7]} 18. gxh4 {[%clk 0:02:04.1]} 18... Nf3+ {[%clk 0:02:43.6]} 19. Kg2
{[%clk 0:02:00]} 19... Rad8 {[%clk 0:02:02.3]} 20. Ne4 {[%clk 0:01:49.3]} 20...
Ne5 {[%clk 0:02:01]} 21. f3 {[%clk 0:01:39.4]} 21... Bf5 {[%clk 0:01:45.1]} 22.
Ng3 {[%clk 0:01:37.2]} 22... Bd3 {[%clk 0:01:45.5]} 23. Nxd3 {[%clk 0:01:33.6]}
23... Nxd3 {[%clk 0:01:46.4]} 24. Bd2 {[%clk 0:01:09.1]} 24... Nxb2 {[%clk
0:01:43.7]} 25. Qc2 {[%clk 0:01:08.9]} 25... Nxc4 {[%clk 0:01:44.2]} 26. Qxc4
{[%clk 0:01:05.8]} 26... Rxd2+ {[%clk 0:01:44.1]} 27. Rf2 {[%clk 0:01:05.6]}
27... Rxf2+ {[%clk 0:01:44.4]} 28. Kxf2 {[%clk 0:01:05.6]} 28... Bxe3+ {[%clk
0:01:45.1]} 29. Kxe3 {[%clk 0:01:06]} 29... Qxg3 {[%clk 0:01:45.1]} 30. Qxc6
{[%clk 0:01:06]} 30... Qe5+ {[%clk 0:01:45.3]} 0-1

[Event "*** SCC Grand Prix: Titled Tuesday Blitz"]
[Site "Chess.com"]
[Date "2020.06.23"]
[Round "1"]
[White "JozefKneht"]
[Black "Jumbo"]
[Result "0-1"]
[WhiteElo "2436"]
[BlackElo "2848"]
[TimeControl "180+1"]
[EndTime "10:04:33 PDT"]
[Termination "Jumbo won by resignation"]

1. e4 {[%clk 0:02:56.9]} 1... c5 {[%clk 0:02:58.2]} 2. Nf3 {[%clk 0:02:56.7]}
2... d6 {[%clk 0:02:57.7]} 3. d4 {[%clk 0:02:57.3]} 3... cxd4 {[%clk 0:02:58.6]}
4. Nxd4 {[%clk 0:02:57.6]} 4... Nf6 {[%clk 0:02:59]} 5. Nc3 {[%clk 0:02:58.2]}
5... Nc6 {[%clk 0:02:59.5]} 6. Bg5 {[%clk 0:02:58.3]} 6... e6 {[%clk 0:02:59.7]}
7. Qd2 {[%clk 0:02:58.8]} 7... a6 {[%clk 0:02:59.1]} 8. O-O-O {[%clk 0:02:59.3]}
8... Bd7 {[%clk 0:02:59.6]} 9. f4 {[%clk 0:02:59.1]} 9... Be7 {[%clk 0:02:58.8]}
10. Nf3 {[%clk 0:02:56.2]} 10... b5 {[%clk 0:02:58.2]} 11. Bd3 {[%clk
0:02:49.3]} 11... b4 {[%clk 0:02:50.3]} 12. Ne2 {[%clk 0:02:47.4]} 12... h6
{[%clk 0:02:29.8]} 13. Bh4 {[%clk 0:02:43.4]} 13... Qb6 {[%clk 0:02:13.4]} 14.
e5 {[%clk 0:02:42]} 14... dxe5 {[%clk 0:02:12.8]} 15. fxe5 {[%clk 0:02:41]}
15... Nd5 {[%clk 0:02:04.5]} 16. Bxe7 {[%clk 0:02:39]} 16... Ncxe7 {[%clk
0:02:05.4]} 17. Ned4 {[%clk 0:02:38.1]} 17... a5 {[%clk 0:02:04.9]} 18. g4
{[%clk 0:02:14.2]} 18... a4 {[%clk 0:02:03.3]} 19. g5 {[%clk 0:01:55.1]} 19...
a3 {[%clk 0:02:02.1]} 20. Bc4 {[%clk 0:01:43.1]} 20... axb2+ {[%clk 0:01:54.2]}
21. Kxb2 {[%clk 0:01:43]} 21... Qa5 {[%clk 0:01:28]} 22. Ne2 {[%clk 0:01:24.4]}
22... Qa3+ {[%clk 0:01:23.7]} 23. Kb1 {[%clk 0:01:19.8]} 23... Qxf3 {[%clk
0:01:16.3]} 0-1

[Event "*** SCC Grand Prix: Titled Tuesday Blitz"]
[Site "Chess.com"]
[Date "2020.06.23"]
[Round "1"]
[White "Gordima"]
[Black "Tsyhanchuk_Stanislav"]
[Result "1-0"]
[WhiteElo "2738"]
[BlackElo "2385"]
[TimeControl "180+1"]
[EndTime "10:04:36 PDT"]
[Termination "Gordima won by checkmate"]

1. d4 {[%clk 0:02:57.8]} 1... Nf6 {[%clk 0:02:58.3]} 2. c4 {[%clk 0:02:58]} 2...
c6 {[%clk 0:02:55.7]} 3. Nf3 {[%clk 0:02:57.5]} 3... d5 {[%clk 0:02:55.4]} 4. e3
{[%clk 0:02:58]} 4... g6 {[%clk 0:02:55]} 5. Nc3 {[%clk 0:02:57]} 5... Bg7
{[%clk 0:02:54.5]} 6. Be2 {[%clk 0:02:56.4]} 6... O-O {[%clk 0:02:54]} 7. O-O
{[%clk 0:02:56.8]} 7... b6 {[%clk 0:02:53]} 8. b4 {[%clk 0:02:55.9]} 8... Bb7
{[%clk 0:02:52.4]} 9. a4 {[%clk 0:02:53]} 9... Nbd7 {[%clk 0:02:49.1]} 10. Ba3
{[%clk 0:02:52.8]} 10... Rc8 {[%clk 0:02:46.8]} 11. Qb3 {[%clk 0:02:50.9]} 11...
Re8 {[%clk 0:02:40.3]} 12. Rac1 {[%clk 0:02:43.9]} 12... e5 {[%clk 0:02:31]} 13.
cxd5 {[%clk 0:02:38.8]} 13... cxd5 {[%clk 0:01:52.3]} 14. Nb5 {[%clk 0:02:36.9]}
14... e4 {[%clk 0:01:44.9]} 15. Nd2 {[%clk 0:02:29.1]} 15... Bf8 {[%clk
0:01:21.9]} 16. Nxa7 {[%clk 0:02:18.5]} 16... Ra8 {[%clk 0:01:21.1]} 17. Nc6
{[%clk 0:02:13.4]} 17... Bxc6 {[%clk 0:01:20.5]} 18. Rxc6 {[%clk 0:02:14.3]}
18... h5 {[%clk 0:01:17.9]} 19. Rfc1 {[%clk 0:02:12.6]} 19... h4 {[%clk
0:01:16.3]} 20. h3 {[%clk 0:02:12.3]} 20... Nh7 {[%clk 0:00:57.8]} 21. Qxd5
{[%clk 0:02:10.3]} 21... Rxa4 {[%clk 0:00:56.5]} 22. Rxg6+ {[%clk 0:01:37.1]}
22... Kh8 {[%clk 0:00:54.3]} 23. Qxf7 {[%clk 0:01:35.8]} 23... Rxa3 {[%clk
0:00:49.2]} 24. Qg8# {[%clk 0:01:35.6]} 1-0

[Event "*** SCC Grand Prix: Titled Tuesday Blitz"]
[Site "Chess.com"]
[Date "2020.06.23"]
[Round "1"]
[White "Raja3401"]
[Black "SavelievAlexei"]
[Result "1-0"]
[WhiteElo "2806"]
[BlackElo "2410"]
[TimeControl "180+1"]
[EndTime "10:04:44 PDT"]
[Termination "Raja3401 won by resignation"]

1. e4 {[%clk 0:03:00.9]} 1... d6 {[%clk 0:02:53.8]} 2. d4 {[%clk 0:03:00.7]}
2... Nf6 {[%clk 0:02:54.1]} 3. Nc3 {[%clk 0:03:00.1]} 3... e5 {[%clk 0:02:54.7]}
4. dxe5 {[%clk 0:03:00.5]} 4... dxe5 {[%clk 0:02:55.6]} 5. Qxd8+ {[%clk
0:03:01.3]} 5... Kxd8 {[%clk 0:02:56.4]} 6. Bc4 {[%clk 0:03:02.1]} 6... Be6
{[%clk 0:02:53.7]} 7. Bxe6 {[%clk 0:03:01.2]} 7... fxe6 {[%clk 0:02:54.6]} 8. f3
{[%clk 0:03:02.1]} 8... Bd6 {[%clk 0:02:54.8]} 9. Be3 {[%clk 0:03:01.6]} 9... a6
{[%clk 0:02:54.1]} 10. Nh3 {[%clk 0:02:58.9]} 10... Nbd7 {[%clk 0:02:52.9]} 11.
Nf2 {[%clk 0:02:55.4]} 11... Ke7 {[%clk 0:02:53.1]} 12. Nd3 {[%clk 0:02:55.5]}
12... b5 {[%clk 0:02:41.9]} 13. a4 {[%clk 0:02:54.6]} 13... c6 {[%clk
0:02:27.9]} 14. Ke2 {[%clk 0:02:50.6]} 14... Rhb8 {[%clk 0:02:18.9]} 15. Ra2
{[%clk 0:02:49.5]} 15... b4 {[%clk 0:02:18.8]} 16. Nb1 {[%clk 0:02:48.1]} 16...
b3 {[%clk 0:02:18.9]} 17. cxb3 {[%clk 0:02:47.5]} 17... Rxb3 {[%clk 0:02:19.8]}
18. Nd2 {[%clk 0:02:47.9]} 18... Rb7 {[%clk 0:02:17.4]} 19. Rc1 {[%clk
0:02:47.6]} 19... Rc8 {[%clk 0:02:02.8]} 20. Nc4 {[%clk 0:02:43.1]} 20... h6
{[%clk 0:01:51.8]} 21. Na5 {[%clk 0:02:35.4]} 21... Rbc7 {[%clk 0:01:51.9]} 22.
b4 {[%clk 0:02:26.6]} 22... c5 {[%clk 0:01:47.6]} 23. b5 {[%clk 0:01:50.2]}
23... c4 {[%clk 0:01:37.2]} 24. Nf2 {[%clk 0:01:43.9]} 24... Bb4 {[%clk
0:01:17.7]} 25. Nc6+ {[%clk 0:01:40.5]} 25... Rxc6 {[%clk 0:01:18.1]} 26. bxc6
{[%clk 0:01:41.4]} 26... Rxc6 {[%clk 0:01:19]} 27. Rac2 {[%clk 0:01:41.2]} 27...
c3 {[%clk 0:01:19.1]} 28. Nd1 {[%clk 0:01:41.7]} 1-0

[Event "*** SCC Grand Prix: Titled Tuesday Blitz"]
[Site "Chess.com"]
[Date "2020.06.23"]
[Round "1"]
[White "WonderChampion"]
[Black "dpruess"]
[Result "1-0"]
[WhiteElo "2025"]
[BlackElo "2475"]
[TimeControl "180+1"]
[EndTime "10:04:50 PDT"]
[Termination "WonderChampion won by resignation"]

1. d4 {[%clk 0:03:00.9]} 1... d5 {[%clk 0:02:56.4]} 2. Bg5 {[%clk 0:03:00.4]}
2... h6 {[%clk 0:02:53.2]} 3. Bh4 {[%clk 0:02:56.6]} 3... c6 {[%clk 0:02:53.2]}
4. Nf3 {[%clk 0:02:54]} 4... Qb6 {[%clk 0:02:47.1]} 5. Qc1 {[%clk 0:02:50.7]}
5... Bg4 {[%clk 0:02:31.4]} 6. Nbd2 {[%clk 0:02:47.9]} 6... Nd7 {[%clk
0:02:24.4]} 7. e3 {[%clk 0:02:45.1]} 7... e6 {[%clk 0:01:40.6]} 8. Bd3 {[%clk
0:02:43.5]} 8... Bd6 {[%clk 0:01:39.7]} 9. O-O {[%clk 0:02:27.6]} 9... Qc7
{[%clk 0:01:30.1]} 10. Bg3 {[%clk 0:02:26.6]} 10... Bxg3 {[%clk 0:01:26.7]} 11.
fxg3 {[%clk 0:02:27.5]} 11... e5 {[%clk 0:01:11.8]} 12. dxe5 {[%clk 0:02:23.3]}
12... Nxe5 {[%clk 0:01:11.2]} 13. Nxe5 {[%clk 0:02:20.3]} 13... Qxe5 {[%clk
0:01:12.1]} 14. Nf3 {[%clk 0:02:18.3]} 14... Qe7 {[%clk 0:01:06]} 15. Re1 {[%clk
0:02:08.2]} 15... Nf6 {[%clk 0:01:05.2]} 16. c4 {[%clk 0:02:05.6]} 16... O-O
{[%clk 0:00:57.5]} 17. cxd5 {[%clk 0:02:04.5]} 17... Nxd5 {[%clk 0:00:57.5]} 18.
Bc4 {[%clk 0:02:01.6]} 18... Rad8 {[%clk 0:00:55.6]} 19. e4 {[%clk 0:01:59.3]}
19... Nb4 {[%clk 0:00:43.5]} 20. Qc3 {[%clk 0:01:53.3]} 20... Qc5+ {[%clk
0:00:18.7]} 21. Kh1 {[%clk 0:01:52]} 21... b5 {[%clk 0:00:18.6]} 22. Bxf7+
{[%clk 0:01:50.1]} 1-0

[Event "*** SCC Grand Prix: Titled Tuesday Blitz"]
[Site "Chess.com"]
[Date "2020.06.23"]
[Round "1"]
[White "Hikaru"]
[Black "Kapitan_Bayan"]
[Result "1-0"]
[WhiteElo "3227"]
[BlackElo "2468"]
[TimeControl "180+1"]
[EndTime "10:04:55 PDT"]
[Termination "Hikaru won by resignation"]

1. Nf3 {[%clk 0:03:00.9]} 1... Nf6 {[%clk 0:02:58.4]} 2. b3 {[%clk 0:03:00.2]}
2... e6 {[%clk 0:02:58.5]} 3. Bb2 {[%clk 0:03:00.3]} 3... d5 {[%clk 0:02:59.2]}
4. e3 {[%clk 0:02:58.5]} 4... Be7 {[%clk 0:02:57.9]} 5. d4 {[%clk 0:02:57.1]}
5... O-O {[%clk 0:02:58.1]} 6. Bd3 {[%clk 0:02:57.1]} 6... c5 {[%clk 0:02:55.6]}
7. O-O {[%clk 0:02:56.1]} 7... b6 {[%clk 0:02:51.7]} 8. dxc5 {[%clk 0:02:55.9]}
8... bxc5 {[%clk 0:02:50.4]} 9. c4 {[%clk 0:02:55.8]} 9... Nc6 {[%clk
0:02:47.2]} 10. cxd5 {[%clk 0:02:55.9]} 10... exd5 {[%clk 0:02:46.3]} 11. Nbd2
{[%clk 0:02:49.9]} 11... Nb4 {[%clk 0:02:43.9]} 12. Be2 {[%clk 0:02:45.1]} 12...
Bf5 {[%clk 0:02:41.4]} 13. Ne1 {[%clk 0:02:43.6]} 13... a5 {[%clk 0:02:36.8]}
14. a3 {[%clk 0:02:43.4]} 14... Nc6 {[%clk 0:02:34.7]} 15. Rc1 {[%clk 0:02:43]}
15... Qb6 {[%clk 0:02:28.7]} 16. Bd3 {[%clk 0:02:43.2]} 16... Bg4 {[%clk
0:02:13.2]} 17. Qc2 {[%clk 0:02:41.4]} 17... h6 {[%clk 0:02:09.7]} 18. Bxf6
{[%clk 0:02:39.4]} 18... Bxf6 {[%clk 0:01:48.3]} 19. h3 {[%clk 0:02:37]} 19...
Be6 {[%clk 0:01:41.4]} 20. Qxc5 {[%clk 0:02:36.5]} 20... Qxc5 {[%clk 0:01:38]}
21. Rxc5 {[%clk 0:02:37.4]} 21... Ne5 {[%clk 0:01:38.6]} 22. a4 {[%clk
0:02:34.6]} 22... Be7 {[%clk 0:01:30.7]} 23. Rb5 {[%clk 0:02:31.5]} 23... Bb4
{[%clk 0:01:29.3]} 24. Ndf3 {[%clk 0:02:30.5]} 24... Nxd3 {[%clk 0:01:10.5]} 25.
Nxd3 {[%clk 0:02:30]} 25... Rab8 {[%clk 0:01:10.5]} 26. Rxb8 {[%clk 0:02:28.1]}
26... Rxb8 {[%clk 0:01:11.4]} 27. Nxb4 {[%clk 0:02:28.6]} 27... Rxb4 {[%clk
0:01:08.4]} 28. Nd4 {[%clk 0:02:28.6]} 28... Rb6 {[%clk 0:00:36.8]} 29. Rc1
{[%clk 0:02:27.6]} 29... Kf8 {[%clk 0:00:36.3]} 30. Rc5 {[%clk 0:02:26.9]} 30...
Ra6 {[%clk 0:00:36.4]} 31. Rc6 {[%clk 0:02:19.3]} 31... Ra8 {[%clk 0:00:30]} 32.
Nxe6+ {[%clk 0:02:18.9]} 32... fxe6 {[%clk 0:00:30.9]} 33. Rxe6 {[%clk
0:02:19.3]} 33... Rb8 {[%clk 0:00:29.7]} 34. Rd6 {[%clk 0:02:17.7]} 34... Rxb3
{[%clk 0:00:22.5]} 35. Rxd5 {[%clk 0:02:17.4]} 35... Rb1+ {[%clk 0:00:23.4]} 36.
Kh2 {[%clk 0:02:17.3]} 36... Rb2 {[%clk 0:00:24.3]} 37. Kg3 {[%clk 0:02:16.7]}
1-0

[Event "*** SCC Grand Prix: Titled Tuesday Blitz"]
[Site "Chess.com"]
[Date "2020.06.23"]
[Round "1"]
[White "Shield12"]
[Black "sasko1234"]
[Result "1-0"]
[WhiteElo "2832"]
[BlackElo "2423"]
[TimeControl "180+1"]
[EndTime "10:04:56 PDT"]
[Termination "Shield12 won by resignation"]

1. e4 {[%clk 0:03:00.9]} 1... d6 {[%clk 0:03:00]} 2. d4 {[%clk 0:03:00.6]} 2...
Nf6 {[%clk 0:02:59.9]} 3. Nc3 {[%clk 0:03:00.7]} 3... c6 {[%clk 0:03:00.1]} 4.
a4 {[%clk 0:02:55.2]} 4... Qa5 {[%clk 0:02:59.5]} 5. Bd3 {[%clk 0:02:42.5]} 5...
e5 {[%clk 0:02:58.2]} 6. Ne2 {[%clk 0:02:40.1]} 6... Be7 {[%clk 0:02:57]} 7. O-O
{[%clk 0:02:38.2]} 7... O-O {[%clk 0:02:56.8]} 8. h3 {[%clk 0:02:38.6]} 8... h6
{[%clk 0:02:40.1]} 9. Be3 {[%clk 0:02:32.2]} 9... Nbd7 {[%clk 0:02:26.1]} 10.
Qd2 {[%clk 0:02:31]} 10... Qc7 {[%clk 0:02:24.8]} 11. Ng3 {[%clk 0:02:20.9]}
11... exd4 {[%clk 0:02:22.6]} 12. Bxd4 {[%clk 0:02:19.9]} 12... Ne5 {[%clk
0:02:21.4]} 13. Be2 {[%clk 0:02:17.6]} 13... Ng6 {[%clk 0:01:43.2]} 14. Rfe1
{[%clk 0:02:14.6]} 14... Nd7 {[%clk 0:00:51.9]} 15. Nf5 {[%clk 0:02:12.5]} 15...
Nf6 {[%clk 0:00:43.1]} 16. Nxe7+ {[%clk 0:01:59.4]} 16... Qxe7 {[%clk
0:00:42.2]} 17. Bf1 {[%clk 0:01:58.7]} 17... Rd8 {[%clk 0:00:32.9]} 18. Rad1
{[%clk 0:01:55.9]} 18... Be6 {[%clk 0:00:32.7]} 19. f4 {[%clk 0:01:55.3]} 19...
Bc8 {[%clk 0:00:27.9]} 20. Bxf6 {[%clk 0:01:51.7]} 20... gxf6 {[%clk 0:00:25.4]}
21. f5 {[%clk 0:01:50.3]} 21... Ne5 {[%clk 0:00:22.9]} 22. Qxh6 {[%clk
0:01:50.2]} 22... Qf8 {[%clk 0:00:21.8]} 23. Qxf6 {[%clk 0:01:50]} 1-0

[Event "*** SCC Grand Prix: Titled Tuesday Blitz"]
[Site "Chess.com"]
[Date "2020.06.23"]
[Round "1"]
[White "Lenyas66"]
[Black "dodorox"]
[Result "1-0"]
[WhiteElo "2502"]
[BlackElo "2032"]
[TimeControl "180+1"]
[EndTime "10:04:56 PDT"]
[Termination "Lenyas66 won by resignation"]

1. e4 {[%clk 0:03:00.9]} 1... e6 {[%clk 0:03:00.1]} 2. d4 {[%clk 0:03:00.1]}
2... d5 {[%clk 0:02:59.8]} 3. Nd2 {[%clk 0:03:00.3]} 3... Nc6 {[%clk 0:02:58.9]}
4. Ngf3 {[%clk 0:02:59.6]} 4... Nf6 {[%clk 0:02:57.7]} 5. e5 {[%clk 0:02:59.5]}
5... Nd7 {[%clk 0:02:57.6]} 6. Bb5 {[%clk 0:02:59.4]} 6... f6 {[%clk 0:02:50.8]}
7. c4 {[%clk 0:02:43.3]} 7... Bb4 {[%clk 0:02:31.8]} 8. cxd5 {[%clk 0:02:33.7]}
8... exd5 {[%clk 0:02:22.2]} 9. Qb3 {[%clk 0:02:30.7]} 9... Bxd2+ {[%clk
0:02:13.9]} 10. Bxd2 {[%clk 0:02:30.3]} 10... Nb6 {[%clk 0:02:08.5]} 11. O-O
{[%clk 0:02:23.1]} 11... O-O {[%clk 0:02:01.4]} 12. Rfe1 {[%clk 0:01:59.3]}
12... fxe5 {[%clk 0:01:21.4]} 13. Bxc6 {[%clk 0:01:58.5]} 13... bxc6 {[%clk
0:01:20.5]} 14. Nxe5 {[%clk 0:01:58.5]} 14... Bd7 {[%clk 0:01:09.8]} 15. Rac1
{[%clk 0:01:52.7]} 15... Qf6 {[%clk 0:01:02.2]} 16. Qg3 {[%clk 0:01:51.8]} 16...
Be8 {[%clk 0:00:52.8]} 17. Bb4 {[%clk 0:01:49.9]} 17... Bd7 {[%clk 0:00:39.5]}
18. Bxf8 {[%clk 0:01:48.7]} 18... Rxf8 {[%clk 0:00:39.4]} 19. Rc3 {[%clk
0:01:46.2]} 19... Qe7 {[%clk 0:00:25.4]} 20. Rce3 {[%clk 0:01:40.7]} 1-0

[Event "*** SCC Grand Prix: Titled Tuesday Blitz"]
[Site "Chess.com"]
[Date "2020.06.23"]
[Round "1"]
[White "luizwas"]
[Black "Moon_stone123"]
[Result "0-1"]
[WhiteElo "1804"]
[BlackElo "2470"]
[TimeControl "180+1"]
[EndTime "10:05:04 PDT"]
[Termination "Moon_stone123 won by resignation"]

1. e4 {[%clk 0:02:56.7]} 1... c5 {[%clk 0:02:59]} 2. Nf3 {[%clk 0:02:55.2]} 2...
d6 {[%clk 0:02:59]} 3. d4 {[%clk 0:02:55.4]} 3... cxd4 {[%clk 0:02:59.1]} 4.
Nxd4 {[%clk 0:02:56.3]} 4... Nf6 {[%clk 0:02:57.6]} 5. Nc3 {[%clk 0:02:56.9]}
5... g6 {[%clk 0:02:57.7]} 6. f3 {[%clk 0:02:55.2]} 6... Bg7 {[%clk 0:02:57.8]}
7. Be3 {[%clk 0:02:55.7]} 7... Nc6 {[%clk 0:02:56.8]} 8. Qd2 {[%clk 0:02:55.3]}
8... O-O {[%clk 0:02:56.2]} 9. O-O-O {[%clk 0:02:55.5]} 9... Nxd4 {[%clk
0:02:56.1]} 10. Bxd4 {[%clk 0:02:54.9]} 10... Be6 {[%clk 0:02:57]} 11. h4 {[%clk
0:02:51.9]} 11... Qa5 {[%clk 0:02:56.6]} 12. a3 {[%clk 0:02:43.8]} 12... Rab8
{[%clk 0:02:55.3]} 13. h5 {[%clk 0:02:43.7]} 13... Rfc8 {[%clk 0:02:46.3]} 14.
hxg6 {[%clk 0:02:41.3]} 14... hxg6 {[%clk 0:02:45.6]} 15. Be3 {[%clk 0:02:35.3]}
15... b5 {[%clk 0:02:37.3]} 16. Bxb5 {[%clk 0:02:22.3]} 16... Rxb5 {[%clk
0:02:34.6]} 17. Nxb5 {[%clk 0:02:20.2]} 17... Qxb5 {[%clk 0:02:33.1]} 18. Bh6
{[%clk 0:02:14.8]} 18... Nxe4 {[%clk 0:02:29]} 19. Qb4 {[%clk 0:01:49.8]} 19...
Qxb4 {[%clk 0:02:12.9]} 20. axb4 {[%clk 0:01:50.7]} 20... Nf2 {[%clk 0:02:13.3]}
21. Bxg7 {[%clk 0:01:39.9]} 21... Kxg7 {[%clk 0:02:10.2]} 22. c3 {[%clk
0:01:37.7]} 22... Nxh1 {[%clk 0:02:09.8]} 23. Rxh1 {[%clk 0:01:37.4]} 23... Rh8
{[%clk 0:02:09.6]} 24. Re1 {[%clk 0:01:36.1]} 24... Rh2 {[%clk 0:02:08.7]} 25.
g4 {[%clk 0:01:34.5]} 25... Rf2 {[%clk 0:02:08.1]} 26. Re3 {[%clk 0:01:34.7]}
26... Bd5 {[%clk 0:02:05.5]} 27. Rxe7 {[%clk 0:01:33.5]} 27... Bxf3 {[%clk
0:02:01.5]} 28. Rxa7 {[%clk 0:01:33.6]} 28... Bxg4 {[%clk 0:02:00.9]} 29. b5
{[%clk 0:01:33.2]} 29... Bf3 {[%clk 0:01:54.7]} 30. b6 {[%clk 0:01:28.6]} 30...
Rh2 {[%clk 0:01:50]} 31. b7 {[%clk 0:01:28.4]} 31... Rh8 {[%clk 0:01:49.5]} 32.
Ra6 {[%clk 0:01:17.5]} 32... Bxb7 {[%clk 0:01:48.1]} 33. Rxd6 {[%clk 0:01:18]}
33... g5 {[%clk 0:01:47.1]} 34. b4 {[%clk 0:01:18.1]} 34... g4 {[%clk
0:01:42.3]} 35. c4 {[%clk 0:01:18.5]} 35... g3 {[%clk 0:01:35.9]} 36. Rd3 {[%clk
0:01:18.7]} 36... g2 {[%clk 0:01:35.2]} 37. Rg3+ {[%clk 0:01:19]} 37... Kf8
{[%clk 0:01:34.6]} 38. c5 {[%clk 0:01:07.8]} 38... Rg8 {[%clk 0:01:31.4]} 39.
Rxg2 {[%clk 0:01:08.2]} 39... Rxg2 {[%clk 0:01:30.8]} 40. b5 {[%clk 0:01:09.1]}
40... Rg5 {[%clk 0:01:29.9]} 41. c6 {[%clk 0:01:10]} 41... Bxc6 {[%clk
0:01:30.2]} 42. bxc6 {[%clk 0:01:10.5]} 42... Rc5+ {[%clk 0:01:30.8]} 0-1